Cogmind - Beta 12 @@@ ROGUE MODE // 2023.09.17 @ 08:08:34 Player: coRgi Result: Destroyed by G-47 Trooper with Particle Gun Performance ------------- Evolutions (0) 0 Regions Visited (2) 400 Robots Destroyed (3) 15 Value Destroyed (115) 115 Prototype IDs (0) 0 Alien Tech Used (0) 0 Bonus (0) 0 TOTAL SCORE: 530 Bonus ------- None Cogmind --------- Core Integrity 0/250 Matter 300/300 Energy 99/100 System Corruption 0% Temperature Cool (9) Movement Core (100) Ox1 Location -10/Mines Parts ------- > --- POWER (1) -------- (None) > --- PROPULSION (2) --- (None) > --- UTILITY (2) ------ Small Storage Unit > --- WEAPON (2) ------- (None) > --- INVENTORY (8) ---- Ion Engine Light Treads Light Treads Compact Wheel Compact Wheel Terrain Scanner Small Laser Peak State ------------ > --- POWER ------------ Light Ion Engine > --- PROPULSION ------- Aluminum Leg Aluminum Leg > --- UTILITY ---------- Small Storage Unit Sensor Array > --- WEAPON ----------- EM Pulse Gun Light Assault Rifle > --- INVENTORY -------- Ion Engine Light Treads Light Treads Compact Wheel Compact Wheel Small Laser [Rating: 7] Favorites ----------- Power Light Ion Engine Engine Light Ion Engine Propulsion Aluminum Leg Leg Aluminum Leg Utility Small Storage Unit Device Sensor Array Storage Small Storage Unit Weapon EM Pulse Gun Energy Gun EM Pulse Gun Ballistic Gun Light Assault Rifle Build | -11 -10 -10 ------- Run | Jun Mat Min Slots Evolved . | . . . Power . | . . . Propulsion . | . . . Utility . | . . . Weapon . | . . . Parts Attached 8 | 6 1 1 Power 1 | 1 . . Engine 1 | 1 . . Core . | . . . Reactor . | . . . Propulsion 2 | 2 . . Treads . | . . . Leg 2 | 2 . . Wheel . | . . . Hover . | . . . Flight . | . . . Utility 2 | 1 1 . Device 1 | . 1 . Storage 1 | 1 . . Processor . | . . . Hackware . | . . . Protection . | . . . Artifact . | . . . Weapon 3 | 2 . 1 Energy Gun 2 | 1 . 1 Energy Cannon . | . . . Ballistic Gun 1 | 1 . . Ballistic Cannon . | . . . Launcher . | . . . Special Weapon . | . . . Impact Weapon . | . . . Slashing Weapon . | . . . Piercing Weapon . | . . . Special Melee Weapon . | . . . Unidentified Prototypes . | . . . Parts Lost 6 | . . 6 Power 1 | . . 1 Propulsion 2 | . . 2 Utility 1 | . . 1 Weapon 2 | . . 2 Highest Loss Streak 5 | . . 5 To Critical Strikes . | . . . Average Slot Usage (%) 75 | . 97 70 Engine 5 | . 14 3 Leg 22 | . 28 20 Device 10 | . 11 10 Storage 14 | . 14 14 Energy Gun 15 | . 14 15 Ballistic Gun 6 | . 14 5 Naked Turns . | . . . Heaviest Build 12 | 11 12 12 Greatest Support 20 | 20 20 20 Greatest Overweight (x) 1 | . . 1 Average Overweight (x) . | . . . Largest Inventory Capacity 8 | 8 8 8 Average Capacity 7 | 6 8 8 Most Carried 8 | 6 7 8 Average Carried 6 | 2 6 7 Final Capacity 8 | 8 8 8 Final Carried 7 | 6 7 7 Class Distribution -------------------- 100% | Mutant Dominant Class ---------------- Mutant | -10/Materials Mutant | -10/Mines Resources | -11 -10 -10 ----------- Run | Jun Mat Min Matter Collected 282 | 252 . 30 Remotely . | . . . Salvage Created 121 | . . 121 Parts 6 | . . 6 Haulers Intercepted . | . . . Recyclers Shooed . | . . . Parts Field Recycled . | . . . Retrieved Matter . | . . . Parts Self-Destructed . | . . . Prevented . | . . . Kills | -11 -10 -10 ------- Run | Jun Mat Min Combat Hostiles Destroyed 3 | . . 3 Guns 2 | . . 2 AOE 1 | . . 1 Classes Destroyed 1 | . . 1 Grunt 3 | . . 3 Best Kill Streak 2 | . . 2 Combat Bots Only 2 | . . 2 Max Kills in Single Turn 1 | . . 1 Gunslinging . | . . . Exploded 1 | . . 1 Melee . | . . . Uniques/NPCs Destroyed . | . . . Combat | -11 -10 -10 -------- Run | Jun Mat Min Damage Taken 678 | . 42 636 Core 257 | . 10 247 Absorbed by Shields . | . . . Core Remaining (%) 100 | 100 . . Volleys Fired 23 | . . 23 Largest 2 | . . 2 Hottest 105 | . . 105 Shots Fired 32 | . . 32 Gun 32 | . . 32 Cannon . | . . . Launcher . | . . . Special . | . . . Kinetic 7 | . . 7 Thermal 16 | . . 16 Explosive . | . . . Electromagnetic 9 | . . 9 Robot Hit Streak 7 | . . 7 Robot Miss Streak 2 | . . 2 Penetration Max . | . . . Secondary Targets 1 | . . 1 Max Gunslinging Chain 1 | . . 1 Shots Hit Robots 22 | . . 22 Core Hits 7 | . . 7 Critical Kills . | . . . Critical Parts Destroyed . | . . . Critical Strikes . | . . . Melee Attacks . | . . . Impact . | . . . Slashing . | . . . Piercing . | . . . Sneak Attacks . | . . . Combat Hostiles . | . . . Follow-up Attacks . | . . . Damage Inflicted 392 | . . 392 Guns 305 | . . 305 Cannons . | . . . Explosions 87 | . . 87 Melee . | . . . Ramming . | . . . Kinetic 35 | . . 35 Thermal 286 | . . 286 Explosive . | . . . Electromagnetic 71 | . . 71 Impact . | . . . Slashing . | . . . Piercing . | . . . Highest Corruption . | . . . Average Corruption . | . . . Corruption Purged . | . . . Corruption Blocked . | . . . Overload Shots . | . . . Overflow Damage . | . . . Projectiles . | . . . Explosions . | . . . Melee . | . . . Knockbacks . | . . . Impact . | . . . Kinetic . | . . . Secondary . | . . . Self-Inflicted Damage . | . . . Shots . | . . . Rammed . | . . . Targets Rammed . | . . . Kicked . | . . . Crushed . | . . . Highest Temperature 405 | . . 405 Average Temperature 150 | . . 150 Received Heat Transfer 474 | . 24 450 Siege Activations . | . . . Robots Corrupted . | . . . Combat Hostiles . | . . . Parts Fried . | . . . Impact Corruptions . | . . . Robots Melted . | . . . Combat Hostiles . | . . . Parts Melted . | . . . Heat Transferred 581 | . . 581 Parts Sabotaged . | . . . Parts Stolen . | . . . Parts Stripped . | . . . Power Chain Reactions 1 | . . 1 Missiles Intercepted . | . . . Alert | -11 -10 -10 ------- Run | Jun Mat Min Peak Influence 57 | . . 57 Initial . | . . . Average 21 | . . 32 Maximum Alert Level . | . . . Low Security (%) 100 | 100 100 100 Level 1 . | . . . Level 2 . | . . . Level 3 . | . . . Level 4 . | . . . Level 5 . | . . . High Security . | . . . Max Security . | . . . Squads Dispatched . | . . . Investigation . | . . . Extermination . | . . . Reinforcement . | . . . Assault . | . . . Garrison . | . . . Intercept . | . . . Searches Triggered . | . . . Construction Impeded . | . . . Haulers Reinforced . | . . . Active Scanning Responses . | . . . Cargo Convoy Interrupts . | . . . Stealth | -11 -10 -10 --------- Run | Jun Mat Min Distress Signals . | . . . Communications Jammed . | . . . Distress Signals . | . . . Times Spotted 6 | . 2 4 Peak Tracking Total 2 | . 2 2 Tactical Retreats . | . . . Traps | -11 -10 -10 ------- Run | Jun Mat Min Traps Triggered . | . . . Indirectly . | . . . Trap Hack Attempts . | . . . Triggered . | . . . Disarmed . | . . . Reprogrammed . | . . . Reused . | . . . Traps Extracted . | . . . Installed . | . . . Triggered . | . . . Machines | -11 -10 -10 ---------- Run | Jun Mat Min Machines Disabled . | . . . Max in Single Turn . | . . . Machines Repaired . | . . . Machines Sabotaged . | . . . Overloaded Fab Kills . | . . . Hacking | -11 -10 -10 --------- Run | Jun Mat Min Machines Accessed . | . . . Terminals . | . . . Fabricators . | . . . Repair Stations . | . . . Recycling Units . | . . . Scanalyzers . | . . . Garrison Access . | . . . Total Hacks . | . . . Successful . | . . . Failed . | . . . Catastrophic . | . . . Database Lockouts . | . . . Manual . | . . . Terminals . | . . . Fabricators . | . . . Repair Stations . | . . . Recycling Units . | . . . Scanalyzers . | . . . Garrison Access . | . . . Terminal Hacks . | . . . Fabricator Hacks . | . . . Repair Station Hacks . | . . . Recycling Unit Hacks . | . . . Scanalyzer . | . . . Garrison Access Hacks . | . . . Unauthorized Hacks . | . . . Terminals . | . . . Fabricators . | . . . Repair Stations . | . . . Recycling Units . | . . . Scanalyzers . | . . . Garrison Access . | . . . Data Cores Recovered . | . . . Used . | . . . Hacking Detections . | . . . Full Trace Events . | . . . Feedback Events . | . . . Feedback Blocked . | . . . Robot Schematics Acquired . | . . . Robots Built . | . . . Authchips . | . . . Time . | . . . Total Robot Build Rating . | . . . Part Schematics Acquired . | . . . Parts Built . | . . . Authchips . | . . . Time . | . . . Total Part Build Rating . | . . . Parts Repaired . | . . . Time . | . . . Parts Recycled . | . . . Recycled Matter . | . . . Retrieved Matter . | . . . Retrieved Components . | . . . Parts Scanalyzed . | . . . Part Schematics Acquired . | . . . Parts Damaged . | . . . Bothacking | -11 -10 -10 ------------ Run | Jun Mat Min Used RIF Installer . | . . . Robots Hacked . | . . . Non-combat . | . . . Combat . | . . . Robot Hacks Applied . | . . . Relay Couplers Released . | . . . Fabnet Peak Effective % . | . . . Robots Rewired . | . . . Allies Hacked . | . . . Hacks Repelled . | . . . Allies | -11 -10 -10 -------- Run | Jun Mat Min Total Allies . | . . . Largest Group . | . . . Highest-Rated Group . | . . . Highest-Rated Ally . | . . . Total Orders . | . . . Ally Attacks . | . . . Total Damage . | . . . Kills . | . . . Allies Corrupted . | . . . Allies Melted . | . . . Intel | -11 -10 -10 ------- Run | Jun Mat Min Robot Analysis Total . | . . . Derelict Logs Recovered . | . . . Drone Launches . | . . . Drone Recoveries . | . . . Exploration | -11 -10 -10 ------------- Run | Jun Mat Min Turns Passed 437 | 80 63 294 Spaces Moved 318 | 58 51 209 Core 72 | 9 . 63 Treads . | . . . Legs 246 | 49 51 146 Wheels . | . . . Hover . | . . . Flight . | . . . Fastest Speed 50 | 50 120 100 Average Speed 114 | 109 120 113 Slowest Speed 120 | 120 120 120 Overloaded Moves . | . . . Propulsion Burnouts . | . . . Robots Hopped . | . . . Cave-ins Triggered . | . . . Exploration Rate (%) 19 | 4 12 41 Regions Visited 2 Branch Regions 1 Pre-discovered Areas . | . . . Known Exits Taken . | . . . Unknown Exits Taken 2 | 1 1 . Scrap Searched 1 | . . 1 Spaces Dug . | . . . Terrain Destroyed 7 | . . 7 Melee . | . . . Projectile . | . . . AOE 7 | . . 7 Terrain Rammed . | . . . Walls Destroyed . | . . . Machines Disabled . | . . . Actions | -11 -10 -10 --------- Run | Jun Mat Min Total 362 | 74 53 235 Wait . | . . . Move 316 | 57 50 209 Hop . | . . . Pick Up 14 | 11 2 1 Fast Attach 1 | 1 . . Attach 7 | 5 1 1 Detach . | . . . Swap . | . . . Drop 1 | . . 1 Fire 23 | . . 23 Melee . | . . . Ram . | . . . Kick . | . . . Crush . | . . . Escape Stasis . | . . . Rewire . | . . . Trap . | . . . Miscellaneous . | . . . Route ------- -11/Junkyard -10/Materials -10/Mines History --------- Turn | Location | Event 3 | -11/Junkyard | Discovered new exit (range 15) 81 | -11/Junkyard | Entered Materials 114 | -10/Materials | Discovered new exit (range 15) 144 | -10/Materials | Entered Mines 311 | -10/Mines | Build established: Mutant 379 | -10/Mines | Core integrity fell below 50% 399 | -10/Mines | Core integrity fell below 20% 405 | -10/Mines | Lost 5 parts (2n1u2w) 438 | -10/Mines | Destroyed by G-47 Trooper with Particle Gun Last Messages --------------- Acquired 10 matter. K-01 Serf collects debris. K-01 Serf cleans the Core Extractor. K-01 Serf collects debris. Critical hit (Burn: +37). EM Pulse Gun destroyed. Critical hit (Burn: +37). Aluminum Leg destroyed. Sensor Array destroyed. G-34 Mercenary destroyed. Aluminum Leg destroyed. Particle Gun destroyed. G-47 Trooper heat short circuits Aluminum Leg. Critical hit (Burn: +37). Searching scrap... Found Aluminum Leg. Found Datajack. Found Assault Rifle. Found 29 Matter. Critical hit (Burn: +37). Map ----- +----------------------------------------------------+ | ###### #????###?????????????? | | ##??# ##????????????? | | ###### # ### #????????????? | | ????????# ##### ### #### ##??????? | | ????????# ????####?### $ ?????? | | ???????? ???????????## ?????? | | ????????#?????????????# ######??????? | | ??????????????????????## #???????????? | | ???????????????????????## #???????????? | | ????????????????????????# ## #???????????? | | ????????????????????????# ##? #???????????? | | ????????????????????????## /#??? #???????????? | | ?????????????????????????##=%#??? #???????????? | | ??????????????????????????#[ #???? #??????????? | | ??????????????????????????# #????# #??????????? | | ??????????????????????????# #????? #??????????? | | ??????????????????????????# #??????? #??????????? | | ??????????????????????????# #???????????????????? | | ??????????????????????????# #???????????????????? | | ???????????????????####???# #######?????????????? | | ?????????????????### ##??# #?????????????? | | ????????????????## ##?# ##### #?????????????? | | ???????????????## ### ##??????????????????? | | ??????????????## ## #??????????????????? | | ?????????????## g #??????????????????? | | ????????????## @ ####??????????????????? | | ????????????# ##?????????????????????? | | ????????????# #??????????????????????? | | ????????????## #??????????????????????? | | ?????????????## #??????????????????????? | | ??????????????## #??????????????????????? | | ???????????????# #??????????????????????? | | ??????????????# #??????????????????????? | | ?????????????# ##??????????????????????? | | ?????????????# #???????????????????????? | | ?????????????# ##???????????????????????? | | ?????????????# ###????????????????????????? | | ?????????????## ####???????????????????????????? | | ??????????????####???????????????????????????????? | | ?????????????????????????????????????????????????? | | ?????????????????????????????????????????????????? | | | | | | | | | | | | | | | | | | | +----------------------------------------------------+ Best States ------------- Heat Dissipation 25 Energy Generation 10 Energy Capacity 125 Matter Stores 300 Matter Capacity 300 Sight Range 16 Terrain Scan Density 10 Evasion (%) 55 Item Schematics ----------------- None Robot Schematics ------------------ None Fabricated ------------ Nothing Alien Tech Used ----------------- None Achievements -------------- None Challenges ------------ None Game ------ Seed BattleProcessingPrototype Manual? 0 Play Time 00:18:49 Cumulative 1.8 hours Start 2023.09.17 @ 05:39:29 End 2023.09.17 @ 08:08:34 Sessions 3 Manual Loads 0 Difficulty Rogue Special Mode None Game No. 6 Rogue 4 Adventurer 0 Explorer 2 Win Type - Total 0 Types 0/0/0/0/0/0/0/0/0 Lore% 0 Gallery% 2 Achievement% 0 Wizard Run 0 Options --------- ASCII 0 Keyboard 0 Movement Arrows Keybinds 0 Fullscreen 0 Font 16/SmallcapsGlow Map View 76x50 Tactical HUD 0 Map Filters NONE Filters NONE Steam 1 RUN: 5e628913-4fdc-4e68-a2f1-2ae5a2a8eca8